bitfinex/quotes_ETHUSD_20260312
["timestamp","ask_amount","ask_price","bid_price","bid_amount"]
[1773282080689,1.70727092,2037.8,2037.1,1.22719516]
[1773282082223,1.70727092,2037.7,2037.0,4.9089867]
[1773282082901,1.70727092,2037.7,2037.0,1.22729504]
[1773282083297,1.70727092,2037.7,2036.9,1.22732137]
[1773282083507,1.70727092,2037.7,2036.8,1.22737577]
[1773282083712,1.70727092,2037.6,2036.8,1.22737577]
[1773282084386,1.70727092,2037.4,2036.8,1.22737577]
[1773282085212,1.70727092,2037.6,2036.8,3.02653293]
[1773282085517,1.70727092,2037.6,2036.8,1.22737577]
[1773282085707,1.70727092,2037.6,2036.8,3.02653293]
[1773282086689,1.70727092,2037.5,2036.8,3.02653293]
[1773282087781,1.70727092,2037.7,2037.0,1.79915716]
[1773282088125,3.33427092,2037.9,2037.0,1.79915716]
[1773282089012,1.70727092,2037.9,2037.2,1.79915716]
[1773282091588,1.70727092,2037.9,2037.3,1.22711431]
[1773282092197,1.70727092,2037.9,2037.3,3.02618147]
[1773282092391,1.70727092,2038.2,2037.4,1.79906716]
[1773282092927,1.70727092,2038.2,2037.3,1.22711431]
[1773282093815,1.70727092,2038.2,2037.4,1.79468346]
[1773282094512,0.001,2038.3,2037.6,1.6726929]
[1773282094715,0.001,2038.3,2037.7,1.79029341]
[1773282094917,0.001,2038.3,2037.6,1.6726929]
[1773282094918,1.70827092,2038.3,2037.5,1.78589349]
[1773282095694,1.70827092,2038.3,2037.6,3.01282713]
[1773282095901,0.001,2038.3,2037.7,1.78589349]
[1773282096427,0.001,2038.0,2037.7,1.78589349]
[1773282096625,0.001,2038.3,2037.7,1.78048317]
[1773282097800,0.001,2038.3,2037.8,1.22681322]
[1773282098430,0.001,2038.3,2037.9,1.77165576]
[1773282099929,0.001,2038.3,2038.0,1.22669283]
[1773282100602,1.70827092,2038.3,2037.6,0.0011]
[1773282100802,1.70827092,2038.3,2037.6,1.22802089]
[1773282102019,2.93478422,2038.3,2037.6,0.0011]
[1773282102223,1.73617403,2038.2,2037.6,0.0011]
[1773282102744,1.73617403,2038.1,2037.4,0.0011]
[1773282102927,1.73617403,2037.9,2037.4,0.0011]
[1773282104117,1.73617403,2037.8,2037.4,0.0011]
[1773282106523,1.73617403,2037.6,2037.4,0.0011]
[1773282106731,1.73617403,2037.6,2037.1,0.0011]
[1773282107052,1.73617403,2037.5,2037.1,0.0011]
[1773282107940,1.6726929,2037.6,2036.5,2.95783341]
[1773282107941,1.73617403,2037.3,2036.5,2.95783341]
[1773282108818,1.22716091,2037.3,2036.5,2.95783341]
[1773282109018,1.73617403,2037.2,2036.5,2.95783341]
[1773282109535,1.73617403,2037.2,2036.9,0.0011]
[1773282110934,1.22723479,2037.1,2036.9,0.0011]
[1773282111236,1.72095742,2037.0,2036.9,0.0011]
[1773282111436,1.72095742,2037.2,2036.9,0.0011]
[1773282111638,1.72095742,2037.6,2036.9,0.0011]
[1773282111838,3.33295742,2037.6,2036.9,1.71990787]
[1773282112044,1.72095742,2037.5,2036.9,0.0011]
[1773282114430,1.2269038,2037.7,2036.9,1.70618475]
[1773282114608,2.9477848,2037.8,2036.9,1.70618475]
[1773282114814,1.72095742,2037.7,2036.9,1.70618475]
[1773282115341,1.72095742,2037.7,2036.9,0.0011]
[1773282116038,1.72095742,2037.5,2036.9,0.0011]
[1773282120042,1.72095742,2037.4,2036.9,0.0011]
[1773282121639,1.72095742,2037.4,2037.1,0.0011]
[1773282121840,0.001,2037.3,2037.1,0.0011]
[1773282122519,2.83585289,2037.8,2037.1,1.66843228]
[1773282122520,3.32995742,2037.8,2037.1,1.66843228]
[1773282122951,1.72095742,2037.7,2037.1,1.66843228]
[1773282123164,1.72095742,2037.9,2037.1,1.66843228]
[1773282123319,1.72095742,2037.9,2037.1,0.0011]
[1773282124146,1.72095742,2037.7,2037.1,0.0011]
[1773282124339,1.72095742,2037.7,2037.1,1.65924726]
[1773282125175,1.72095742,2037.7,2037.1,0.0011]
[1773282125359,1.72095742,2037.5,2037.1,0.0011]
[1773282125849,1.72095742,2037.7,2037.1,1.65462764]
[1773282126171,1.22681322,2037.8,2037.2,1.22717455]
[1773282126339,4.54975318,2037.9,2037.2,2.87609541]
[1773282126540,2.94865562,2038.0,2037.2,1.22717455]
[1773282126768,1.72095742,2037.9,2037.2,1.22717455]
[1773282127130,1.72095742,2037.9,2037.2,2.87147534]
[1773282129357,2.94771156,2037.9,2037.2,2.87147534]
[1773282131466,2.94771156,2037.9,2037.1,4.90979821]
[1773282131467,1.72095742,2037.8,2037.1,1.22831544]
[1773282131966,1.72095742,2037.8,2037.2,1.62581255]
[1773282133772,1.72095742,2037.8,2037.3,1.22711431]
[1773282134587,1.72195742,2038.0,2037.4,1.61186885]
[1773282134748,1.72095742,2037.9,2037.3,2.83898316]
[1773282135148,1.72095742,2037.9,2037.3,2.84008316]
[1773282135848,0.001,2037.6,2037.3,2.84008316]
[1773282136576,1.72195742,2037.6,2037.1,1.22829928]
[1773282137149,0.001,2037.6,2037.2,1.5977927]
[1773282139267,0.001,2037.6,2037.2,1.22714985]
[1773282140768,0.001,2037.6,2037.1,2.81673546]
[1773282141166,0.001,2037.6,2037.2,1.58044655]
[1773282141367,0.001,2037.6,2037.3,1.22711431]
[1773282145074,1.63280141,2037.6,2037.2,1.22715099]
[1773282145991,1.63280141,2037.6,2037.2,2.78410473]
[1773282146690,0.001,2037.6,2037.3,1.55695374]
[1773282148599,0.001,2037.6,2037.4,1.22705408]
[1773282148798,0.001,2037.6,2037.4,1.22815408]
[1773282150726,1.63280141,2037.6,2037.3,1.22711411]
[1773282150998,1.63280141,2037.6,2037.2,0.0011]
[1773282151166,1.63280141,2037.6,2037.3,1.22711431]
[1773282153799,1.63280141,2037.6,2037.2,1.2282144]
[1773282154711,1.63180141,2037.4,2037.1,0.0011]
[1773282154898,1.63180141,2037.3,2037.1,0.0011]
[1773282155207,1.63180141,2037.5,2037.1,1.22832948]
[1773282158707,1.63180141,2037.4,2037.1,1.22832948]
[1773282161809,1.63180141,2037.4,2037.0,1.22835986]
[1773282163013,1.64836849,2037.3,2037.0,0.0011]
[1773282163888,1.64836849,2037.2,2037.0,0.0011]
[1773282164986,1.64836849,2037.2,2036.8,0.0011]
[1773282165391,1.64836849,2037.2,2036.8,1.47951185]
[1773282165890,1.64836849,2037.2,2036.9,1.22735529]
[1773282166391,1.64836849,2037.1,2036.8,0.0011]
[1773282166792,1.64836849,2037.3,2036.8,2.70225244]
[1773282166993,1.64836849,2037.3,2036.8,1.22850916]
[1773282167198,1.64836849,2037.3,2036.9,1.46914178]
[1773282168320,1.64836849,2037.3,2036.9,2.69649701]
[1773282168520,1.64836849,2037.1,2036.8,0.0011]
[1773282169896,1.64836849,2037.1,2036.5,1.45982973]
[1773282170102,3.49144382,2037.3,2036.2,1.23077383]
[1773282170103,1.6097376,2036.6,2036.2,1.23077383]
[1773282170623,1.6097376,2037.0,2036.5,1.45615482]
[1773282171027,3.2057376,2037.1,2036.5,1.45615482]
[1773282171229,1.6097376,2037.0,2036.5,1.45615482]
[1773282172432,1.6097376,2037.3,2036.5,1.45615482]
[1773282172627,1.6097376,2037.3,2036.7,1.44698014]
[1773282172798,1.6107376,2037.4,2036.7,1.44698014]
[1773282173206,0.001,2037.4,2037.0,2.11165955]
[1773282173399,0.001,2037.4,2037.0,1.44233451]
[1773282174026,1.6107376,2037.4,2036.7,1.43769343]
[1773282174531,0.001,2037.4,2036.7,1.43769343]
[1773282174733,0.001,2037.4,2036.9,1.43769343]
[1773282176211,0.001,2037.2,2036.9,1.43769343]
[1773282176415,0.001,2037.2,2036.8,1.22741555]
[1773282176416,0.001,2037.4,2037.2,1.42843973]
[1773282176937,0.001,2037.4,2037.3,1.22711431]
[1773282177633,0.001,2037.4,2037.3,2.65092971]
[1773282178413,0.001,2037.6,2037.3,2.65092971]
[1773282178414,0.001,2037.6,2037.4,1.41923486]
[1773282178614,1.6107376,2038.0,2037.4,1.41923486]
[1773282178818,1.6107376,2038.0,2037.5,1.22699386]
[1773282179129,0.001,2038.0,2037.6,1.41462197]
[1773282179532,1.6107376,2038.0,2037.4,2.64163741]
[1773282179711,1.6107376,2038.0,2037.5,1.41462197]
[1773282180236,0.001,2038.0,2037.5,1.41462197]
[1773282180415,1.6107376,2038.3,2037.7,2.07951425]
[1773282180612,1.6107376,2038.3,2037.8,1.4100807]
[1773282180810,0.001,2038.3,2037.9,1.89618658]
[1773282181015,1.22625557,2038.8,2038.1,2.07951425]
[1773282181016,1.6097376,2038.8,2038.1,2.07951425]
[1773282181214,1.6097376,2038.8,2038.3,0.66943355]
[1773282181444,1.6097376,2039.0,2038.5,0.66943355]
[1773282181736,1.6097376,2039.3,2038.5,2.07491109]
[1773282181913,1.6097376,2039.3,2038.7,0.66943355]
[1773282182238,1.6097376,2038.8,2037.8,2.62772893]
[1773282182408,1.6097376,2038.8,2037.9,1.40093657]
[1773282182409,1.591,2038.8,2037.9,1.40093657]
[1773282182614,1.6097376,2038.7,2037.7,1.40093657]
[1773282182819,2.83618971,2038.4,2037.7,2.62777232]
[1773282183027,1.6097376,2038.3,2037.5,2.62328869]
[1773282183231,1.6097376,2038.3,2037.7,1.39634176]
[1773282184425,1.6097376,2038.3,2037.5,1.22694693]
[1773282184837,1.6097376,2038.3,2037.5,1.39175295]
[1773282187039,1.6097376,2038.3,2037.6,1.22693364]
[1773282188046,1.6097376,2038.2,2037.6,1.22693364]
[1773282188345,1.6097376,2038.2,2037.7,0.0011]
[1773282188547,0.001,2038.1,2037.7,0.0011]
[1773282189051,0.001,2038.1,2037.7,1.3700219]
[1773282191528,0.001,2038.1,2037.8,1.22681322]
[1773282192141,0.001,2038.1,2037.7,4.90839593]
[1773282192142,0.001,2038.1,2037.7,1.22794612]
[1773282192735,0.001,2038.1,2037.8,1.35528714]
[1773282193955,0.001,2038.1,2037.9,2.57750455]
[1773282194151,0.001,2038.1,2038.0,1.34607409]
[1773282194456,1.6097376,2038.6,2038.0,1.34507409]
[1773282195158,1.6097376,2038.8,2038.1,1.34040911]
[1773282195355,1.6097376,2039.1,2038.1,1.34040911]
[1773282196034,1.6097376,2039.1,2038.3,1.34040911]
[1773282196355,2.83576931,2039.1,2038.3,1.34040911]
[1773282196748,1.6097376,2039.0,2038.3,1.34040911]
[1773282196949,1.6097376,2039.3,2038.3,1.34040911]
[1773282198153,1.6097376,2039.1,2038.3,2.5669003]
[1773282198855,1.6097376,2039.0,2037.9,1.32646955]
[1773282199031,1.6097376,2039.0,2037.9,6.23337802]
[1773282200027,2.42597096,2039.2,2038.1,2.54438442]
[1773282200028,1.56853101,2038.9,2038.1,2.54438442]
[1773282200643,0.001,2038.8,2038.1,2.54438442]
[1773282200849,1.56953101,2038.8,2038.1,1.22663264]
[1773282201942,1.56953101,2038.8,2038.1,2.53976626]
[1773282202341,1.56853101,2038.7,2038.1,2.53976626]
[1773282202541,1.56853101,2038.7,2038.0,1.22669283]
[1773282203744,1.56853101,2038.7,2038.0,2.53059547]
[1773282204554,2.79481687,2038.7,2038.0,2.53059547]
[1773282204854,1.56853101,2038.7,2038.0,2.53059547]
[1773282205963,1.56853101,2038.5,2037.9,4.90698703]
[1773282206960,1.56853101,2038.7,2038.0,1.29010842]
[1773282207266,1.56853101,2038.7,2037.8,2.51231389]
[1773282207564,1.56853101,2038.7,2037.9,1.2855288]
[1773282208138,1.56853101,2038.7,2038.0,1.28095977]
[1773282208665,0.001,2038.8,2038.2,1.28095977]
[1773282209048,1.56953101,2038.8,2038.2,1.28095977]
[1773282210171,2.79574647,2038.8,2038.2,1.28095977]
[1773282210334,0.001,2038.8,2038.2,1.28095977]
[1773282210540,0.001,2038.8,2038.4,1.27185129]
[1773282210962,0.001,2038.8,2038.3,1.22651228]
[1773282211467,1.56853101,2039.2,2038.5,1.26630708]
[1773282212470,1.56853101,2039.2,2038.3,1.2617705]
[1773282212679,1.56853101,2039.0,2038.2,2.96054296]
[1773282213042,0.001,2038.8,2038.2,4.21781389]
[1773282213775,1.56953101,2038.8,2038.2,2.96056098]
[1773282214456,1.56953101,2038.8,2038.2,1.22656098]
[1773282214764,2.79575742,2038.8,2038.2,1.22656098]
[1773282214964,1.56953101,2038.8,2038.2,1.22656098]
[1773282215475,2.7957476,2038.8,2038.2,1.22656098]
[1773282215649,1.56953101,2038.8,2038.2,1.22656098]
[1773282216843,2.79574296,2038.8,2038.2,2.47030165]
[1773282217045,1.56953101,2038.8,2038.2,2.47030165]
[1773282217391,1.56853101,2038.7,2038.2,1.24374067]
[1773282218251,1.56853101,2038.7,2038.1,0.0011]
[1773282218772,1.56853101,2038.5,2038.1,0.0011]
[1773282220772,6.47439049,2038.8,2038.1,0.0011]
[1773282220970,1.56853101,2038.6,2038.1,0.0011]
[1773282222570,2.74699899,2038.8,2038.2,1.21736606]
[1773282222770,2.74699899,2038.8,2038.2,2.44391751]
[1773282223550,2.74699234,2038.8,2038.2,2.44391751]
[1773282224460,1.52076185,2038.8,2038.2,2.44391751]
[1773282224653,2.74697964,2038.8,2038.2,2.44391751]
[1773282224853,1.52076185,2038.8,2038.2,2.44391751]
[1773282225157,2.74697547,2038.8,2038.2,2.44391751]
[1773282225361,1.52076185,2038.8,2038.2,2.44391751]
[1773282225863,2.74699317,2038.8,2038.2,2.44391751]
[1773282226183,1.52076185,2038.8,2038.2,2.44391751]
[1773282226774,0.001,2038.8,2038.4,2.42715054]
[1773282227589,0.001,2038.6,2038.4,2.42715054]
[1773282227884,0.001,2038.8,2038.5,1.19522871]
[1773282229799,0.001,2038.8,2038.5,2.42160956]
[1773282230310,1.22605994,2039.1,2038.6,1.18245142]
[1773282230608,2.60677922,2039.3,2038.6,1.18245142]
[1773282230800,1.38083741,2039.2,2038.5,1.18145142]
[1773282231397,2.60671946,2039.4,2038.6,1.17708616]
[1773282231578,1.38083741,2039.3,2038.6,1.17708616]
[1773282231896,1.22596002,2039.3,2038.7,1.17708616]
[1773282232195,1.38083741,2039.2,2038.7,1.17708616]
[1773282233395,2.60679743,2039.3,2038.7,1.17708616]
[1773282233878,2.60679631,2039.3,2038.8,1.22621149]
[1773282234081,2.60676188,2039.3,2038.8,1.22621149]
[1773282234590,2.60676015,2039.3,2038.8,2.39025628]
[1773282234797,2.60676015,2039.3,2038.8,1.16404479]
[1773282235571,1.38083741,2039.3,2038.8,1.16404479]
[1773282235879,2.60677497,2039.3,2038.8,1.16404479]
[1773282236200,1.38083741,2039.2,2038.5,1.15538563]
[1773282236496,1.38083741,2039.2,2038.4,2.3829108]
[1773282236701,1.38083741,2039.2,2038.4,0.0011]
[1773282236870,1.38083741,2039.2,2038.4,2.3829243]
[1773282237203,1.38083741,2039.2,2038.4,1.22753867]
[1773282237402,1.38083741,2039.2,2038.5,1.15107143]
[1773282238901,1.38083741,2039.0,2038.5,2.3774507]
[1773282240175,1.38083741,2039.0,2038.6,1.13926462]
[1773282240603,1.38183741,2039.0,2038.6,0.0011]
[1773282240998,0.001,2039.0,2038.6,1.1349859]
[1773282241298,0.001,2039.0,2038.7,1.1338859]
[1773282241887,1.38083741,2039.8,2038.9,1.1338859]
[1773282242085,1.38083741,2039.8,2039.1,1.12960677]
[1773282242491,1.38083741,2039.8,2039.3,1.67030141]
[1773282242685,1.38083741,2039.8,2039.3,2.79990818]
[1773282242884,1.38083741,2039.8,2039.3,1.12960677]
[1773282243578,2.60645161,2039.8,2039.3,2.3554727]
[1773282243778,1.2256142,2039.8,2039.3,1.22586593]
[1773282243993,1.2256142,2039.8,2039.4,1.12537027]
[1773282244576,1.22557787,2039.9,2039.4,1.12537027]
[1773282244929,1.38083741,2040.1,2039.4,2.79567168]
[1773282245079,1.38083741,2040.1,2039.5,1.11684455]
[1773282245715,1.38083741,2040.1,2039.6,1.11684455]
[1773282245891,1.38083741,2040.2,2039.6,2.78714596]
[1773282246092,1.38083741,2040.2,2039.6,1.11684455]
[1773282247395,1.38083741,2040.2,2039.6,2.78714596]
[1773282247601,1.38083741,2040.2,2039.7,1.10835408]
[1773282247796,1.38083741,2040.2,2039.7,2.33397929]
[1773282248109,2.60620876,2040.2,2039.7,1.10835408]
[1773282248414,1.38083741,2040.2,2039.7,2.33402209]
[1773282248914,1.22534314,2040.3,2039.8,1.10412315]
[1773282249595,1.55475799,2040.4,2039.8,1.10412315]
[1773282249909,0.32948499,2040.4,2040.0,1.09990032]
[1773282250213,1.38083741,2040.3,2039.7,2.32135017]
[1773282250599,0.32948499,2040.4,2039.8,1.09568498]
[1773282251017,1.55473638,2040.4,2039.8,1.09568498]
[1773282251309,1.38083741,2040.3,2039.8,1.09568498]
[1773282251810,1.22537006,2040.2,2039.8,1.09568498]
[1773282252398,2.60616266,2040.3,2039.8,2.32125943]
[1773282252593,1.22532525,2040.3,2039.9,1.49757439]
[1773282253105,0.001,2040.0,2039.7,2.72324263]
[1773282253811,0.001,2040.0,2039.8,1.49757439]
[1773282253985,1.22532525,2040.3,2039.8,1.49757439]
[1773282254388,1.55475411,2040.4,2039.8,1.49757439]
[1773282254688,2.93559152,2040.4,2039.8,1.49757439]
[1773282256018,1.38083741,2040.3,2039.6,1.49757439]
[1773282256714,1.38083741,2040.3,2039.5,2.95178963]
[1773282257099,1.38083741,2040.3,2039.5,1.726]
[1773282258129,1.38083741,2040.1,2039.1,0.18727072]
[1773282258341,1.38083741,2040.1,2039.0,1.22717926]
[1773282258623,1.38083741,2040.1,2039.2,1.67030141]
[1773282258992,1.38083741,2040.1,2039.4,1.85410432]
[1773282260236,2.60629496,2040.1,2039.5,1.22579063]
[1773282260410,1.36985318,2040.0,2039.5,1.22579063]
[1773282261812,1.36985318,2040.0,2039.3,0.27190703]
[1773282262518,2.59540345,2039.9,2039.3,1.49777716]
[1773282262936,1.36985318,2039.8,2039.2,2.89624869]
[1773282263106,1.36985318,2039.8,2039.2,1.22594728]
[1773282264327,1.36985318,2039.6,2039.1,1.22599816]
[1773282265316,1.36985318,2039.6,2039.0,1.22717046]
[1773282266331,2.59563854,2039.6,2039.4,0.0011]
[1773282266811,1.36985318,2039.6,2039.4,0.0011]
[1773282267332,2.59558937,2039.6,2039.4,0.0011]
[1773282267525,1.22573619,2039.6,2039.4,0.0011]
[1773282267721,1.36985318,2039.5,2039.4,0.0011]
[1773282268518,0.001,2039.9,2039.4,0.0011]
[1773282268519,1.37085318,2039.9,2039.4,0.0011]
[1773282270807,1.36985318,2039.7,2039.4,0.0011]
[1773282273471,2.59557241,2039.7,2039.4,0.0011]
[1773282273773,1.37085318,2039.9,2039.4,0.26429098]
[1773282273932,2.5953311,2040.1,2039.5,1.93349239]
[1773282274463,2.59529052,2040.1,2039.5,1.93349239]
[1773282274826,2.59529052,2040.1,2039.5,0.26319098]
[1773282275318,1.36985318,2040.0,2039.5,0.26319098]
[1773282275522,1.22555027,2039.9,2039.5,0.26319098]
[1773282275722,1.36985318,2039.9,2039.4,1.22694913]
[1773282276440,1.36985318,2040.3,2039.8,1.92222372]
[1773282276642,1.36985318,2040.3,2039.4,1.22694913]
[1773282276820,1.36985318,2040.3,2039.5,0.25192231]
[1773282277436,1.36985318,2040.3,2039.6,1.67030141]
[1773282277639,1.36985318,2040.3,2039.6,1.91846382]
[1773282277833,1.36985318,2040.3,2039.7,1.22567044]
[1773282277834,2.59517552,2040.3,2039.7,1.22567044]
[1773282278432,1.36985318,2040.2,2039.7,1.22567044]
[1773282278834,1.36985318,2040.2,2039.7,1.47007658]
[1773282280058,2.59511502,2040.4,2039.8,0.24065642]
[1773282280529,0.001,2040.0,2039.8,0.24065642]
[1773282281238,0.001,2040.0,2039.7,0.0011]
[1773282281552,0.001,2040.0,2039.7,1.22674414]
[1773282282626,1.42455786,2040.0,2039.7,0.0011]
[1773282284859,2.65005539,2040.0,2039.7,0.0011]
[1773282285159,1.42455786,2040.0,2039.7,0.0011]
[1773282286085,1.42355786,2039.9,2039.7,0.0011]
[1773282286962,1.42355786,2039.8,2039.7,0.0011]
[1773282287790,1.42355786,2039.8,2039.5,0.0011]
[1773282291782,2.64916906,2039.8,2039.5,0.0011]
[1773282292404,1.42355786,2039.8,2039.5,0.0011]
[1773282293086,1.36286097,2040.0,2039.5,0.85976508]
[1773282293434,1.36186097,2039.9,2039.5,2.08554399]
[1773282293578,1.36186097,2039.9,2039.5,1.22687751]
[1773282293781,1.36186097,2039.9,2039.5,0.0011]
[1773282293982,1.36186097,2039.9,2039.7,0.0011]
[1773282294396,1.36186097,2039.9,2039.5,0.0011]
[1773282294918,1.36286097,2039.9,2039.5,0.0011]
[1773282295487,1.36131097,2039.7,2039.5,0.0011]
[1773282298091,2.5870415,2039.6,2039.5,0.0011]
[1773282301634,1.36076097,2039.5,2039.2,0.0011]
[1773282302701,1.22585074,2039.4,2039.2,0.0011]
[1773282303209,1.36076097,2039.3,2039.2,0.0011]
[1773282304707,2.58667182,2039.3,2039.2,0.0011]
[1773282306805,1.36076097,2039.3,2039.2,0.0011]
[1773282307004,2.58667182,2039.3,2039.2,0.0011]
[1773282308937,2.58667182,2039.3,2038.7,0.0011]
[1773282308938,1.43535855,2039.2,2038.7,0.0011]
[1773282309436,1.43535855,2039.2,2038.7,1.22736838]
[1773282311146,1.43535855,2039.2,2038.7,0.0011]
[1773282311309,2.66132965,2039.2,2038.7,0.0011]
[1773282312515,1.2259711,2039.2,2038.7,0.0011]
[1773282312725,1.43535855,2039.1,2038.7,0.0011]
[1773282314116,2.66141398,2039.1,2038.7,0.0011]
[1773282314311,1.43535855,2039.0,2038.7,0.0011]
[1773282315114,2.66137334,2039.2,2038.7,0.0011]
[1773282315433,1.43535855,2039.1,2038.7,0.0011]
[1773282316247,1.43535855,2039.1,2038.8,1.89430922]
[1773282316418,1.43535855,2039.1,2038.8,1.22615565]
[1773282316618,1.43535855,2039.1,2038.7,1.22732428]
[1773282317616,1.43535855,2039.0,2038.7,0.0011]
[1773282318429,1.43535855,2039.0,2038.9,0.0011]
[1773282318724,2.66144977,2039.0,2038.9,0.0011]
[1773282319039,1.43535855,2038.9,2038.7,0.0011]
[1773282320151,1.35991168,2039.1,2038.7,1.33499335]
[1773282320455,0.001,2039.2,2038.9,1.33389335]
[1773282321162,1.36091168,2039.2,2038.8,1.22621149]
[1773282321323,2.58688574,2039.2,2038.8,1.22621149]
[1773282321524,1.36091168,2039.2,2038.8,1.22621149]
[1773282323255,1.36091168,2039.2,2038.8,1.33389335]
[1773282323626,1.36091168,2039.2,2038.7,4.90594598]
[1773282323948,1.36091168,2039.2,2038.7,6.23983933]
[1773282324146,1.36091168,2039.2,2038.8,1.33389335]
[1773282324450,1.22697511,2039.2,2038.7,4.90594598]
[1773282324647,1.35991168,2039.1,2038.7,0.0011]
[1773282324856,1.29991168,2039.1,2038.7,1.33499335]
[1773282325353,1.29991168,2039.1,2038.7,0.0011]
[1773282326026,0.001,2039.2,2038.7,1.33499335]
[1773282326226,0.001,2039.2,2038.8,2.00204692]
[1773282326742,1.36091168,2039.2,2038.8,2.00204692]
[1773282327334,1.36091168,2039.2,2038.9,1.22615135]
[1773282329680,1.35991168,2039.6,2039.1,1.33389335]
[1773282329837,1.35991168,2039.6,2039.2,0.66815357]
[1773282330742,1.35991168,2039.6,2039.1,1.33389335]
[1773282330989,1.35991168,2039.6,2039.0,0.66815357]
[1773282331440,1.35991168,2039.6,2038.9,0.66925357]
[1773282331640,1.35991168,2039.4,2039.0,1.22609122]
[1773282331965,1.35991168,2039.4,2039.1,0.66815357]
[1773282332866,1.22571057,2039.7,2039.1,0.66815357]
[1773282332867,1.35991168,2039.6,2039.1,0.66815357]
[1773282333771,1.35991168,2039.6,2039.2,1.22597096]
[1773282337464,1.35991168,2039.6,2039.2,2.55986431]
[1773282338856,1.35991168,2039.8,2039.3,2.00204692]
[1773282340758,1.35991168,2039.7,2039.3,3.22795523]
[1773282341875,1.22561119,2039.8,2039.3,3.22795523]
[1773282342048,1.22561119,2039.8,2039.4,1.31962214]
[1773282342249,1.22561119,2039.8,2039.4,1.32072214]
[1773282342455,1.36137042,2039.7,2039.4,0.0011]
[1773282345179,2.58704706,2039.7,2039.4,0.0011]
[1773282345553,1.36137042,2039.7,2039.4,1.32072214]
[1773282345751,1.22659499,2039.9,2039.4,1.32072214]
[1773282345752,2.58793957,2039.9,2039.4,1.32072214]
[1773282346087,1.36137042,2039.8,2039.4,1.32072214]
[1773282347654,2.58698397,2039.8,2039.4,1.32072214]
[1773282348359,1.36137042,2039.8,2039.4,2.54656808]
[1773282348676,2.58698691,2039.8,2039.4,2.54656808]
[1773282348882,1.36137042,2039.7,2039.4,0.0011]
[1773282349053,1.36137042,2039.7,2039.2,1.22706016]
[1773282349258,1.36137042,2039.7,2039.3,0.66815357]
[1773282349666,1.36137042,2039.7,2039.3,1.89405593]
[1773282349882,1.36137042,2039.7,2039.3,3.21367807]
[1773282350454,2.58704301,2039.7,2039.3,1.98777571]
[1773282350652,2.58704301,2039.7,2039.3,3.21368244]
[1773282350852,1.36137042,2039.7,2039.3,3.21368244]
[1773282351084,1.36137042,2039.7,2039.4,1.41129231]
[1773282351288,1.36137042,2039.7,2039.3,3.30535261]
[1773282351782,2.58705083,2039.7,2039.3,2.07944588]
[1773282352171,1.36137042,2039.7,2039.3,3.30535504]
[1773282352890,1.22565334,2039.8,2039.4,1.41129231]
[1773282353688,2.55430037,2039.8,2039.4,1.41129231]
[1773282354493,2.55430037,2039.8,2039.5,0.0011]
[1773282354860,0.001,2039.6,2039.5,0.0011]
[1773282357568,2.55426519,2039.8,2039.5,0.0011]
[1773282359988,2.5542625,2039.8,2039.5,0.0011]
[1773282360193,0.001,2039.9,2039.5,1.41239231]
[1773282360391,2.5540843,2040.1,2039.8,0.66765498]
[1773282360568,1.32864703,2040.0,2039.8,0.66765498]
[1773282360773,1.32864703,2040.0,2039.7,1.41129231]
[1773282361279,1.32864703,2040.0,2039.6,2.07894729]
[1773282361497,1.32864703,2040.0,2039.5,0.0011]
[1773282361997,1.32864703,2039.9,2039.5,0.0011]
[1773282364394,2.55421181,2039.9,2039.5,0.0011]
[1773282364601,1.32864703,2039.8,2039.5,0.0011]
[1773282365876,1.32864703,2039.8,2039.3,0.0011]
[1773282366312,1.32864703,2039.7,2039.3,0.0011]
[1773282367203,1.32864703,2039.7,2039.3,1.22700432]
[1773282367900,4.90233882,2039.9,2039.3,1.22700432]
[1773282367901,1.32864703,2039.9,2039.6,1.41129231]
[1773282368104,1.32864703,2040.3,2039.8,1.41129231]
[1773282368277,1.32864703,2040.2,2039.9,0.66765498]
[1773282368477,0.001,2040.8,2039.9,2.07894729]
[1773282368695,0.23547524,2040.6,2040.0,1.41129231]
[1773282369270,0.27458725,2040.4,2040.0,2.63677929]
[1773282370281,0.27458725,2040.4,2039.5,2.63816706]
[1773282370486,0.27458725,2040.4,2039.7,1.41129231]
[1773282370689,0.27458725,2040.4,2040.0,0.66765498]
[1773282370895,0.27458725,2040.4,2040.0,2.07894729]
[1773282371594,1.4998418,2040.4,2040.0,2.07894729]
[1773282372194,0.27458725,2040.4,2040.0,2.07894729]
[1773282372403,0.27458725,2040.4,2040.0,3.30443512]
[1773282372567,1.49983848,2040.4,2040.0,1.41129231]
[1773282374473,0.31138008,2040.3,2039.8,1.89321913]
[1773282374805,0.31138008,2040.3,2039.9,1.41129231]
[1773282375376,1.53671758,2040.3,2039.9,1.41129231]
[1773282375600,0.31138008,2040.3,2039.9,2.63683734]
[1773282376303,0.26138008,2040.3,2039.9,2.63683734]
[1773282376886,0.26138008,2040.3,2040.0,1.41129231]
[1773282377192,0.26138008,2040.3,2039.9,2.63683734]
[1773282378188,1.22522176,2040.5,2040.0,1.41129231]
[1773282378376,0.2582107,2040.4,2040.0,1.41129231]
[1773282379504,0.001,2040.1,2040.0,2.6367825]
[1773282379710,0.2582107,2040.4,2040.0,2.6367825]
[1773282382213,0.2582107,2040.4,2040.1,1.37281194]
[1773282383530,0.2582107,2040.4,2040.0,2.59830213]
[1773282384314,0.25324452,2040.5,2040.1,1.37281194]
[1773282385588,1.47708767,2040.6,2040.1,1.37281194]
[1773282385789,0.25191583,2040.5,2040.1,1.37281194]
[1773282386030,0.25191583,2040.5,2039.9,1.37281194]
[1773282386215,0.25056097,2040.3,2039.7,1.37391194]
[1773282386416,0.25056097,2040.1,2039.7,2.59957881]
[1773282386621,0.25056097,2040.1,2039.8,1.37281194]
[1773282387120,0.25056097,2040.1,2039.7,1.37391194]
[1773282387296,0.25056097,2040.1,2039.7,0.0011]
[1773282388321,0.24778808,2039.9,2039.7,0.0011]
[1773282390829,1.4733501,2039.9,2039.7,0.0011]
[1773282391058,0.24778808,2039.9,2039.7,0.0011]
[1773282391530,1.46896972,2040.1,2039.7,1.37391194]
[1773282391828,0.24350992,2040.0,2039.7,1.37391194]
[1773282392031,0.24205777,2040.1,2039.7,0.0011]
[1773282392219,0.24205777,2040.0,2039.7,0.0011]
[1773282392606,0.001,2040.2,2039.7,1.37391194]
[1773282392817,1.83605777,2040.2,2039.7,1.37391194]
[1773282393202,0.24057969,2040.1,2039.7,1.37391194]
[1773282395440,1.46603273,2040.1,2039.7,1.37391194]
[1773282397332,0.24057969,2040.1,2039.7,2.59958096]
[1773282397538,0.24057969,2040.1,2039.8,1.37281194]
[1773282397837,2.81939504,2040.2,2039.8,1.37281194]
[1773282397838,0.001,2040.2,2039.9,1.37281194]